bitfinex/quotes_SOLUSD_20251231
["timestamp","ask_amount","ask_price","bid_price","bid_amount"]
[1767198984935,0.70433752,125.21,125.17,0.67813248]
[1767198985228,0.70433752,125.21,125.17,3.19155124]
[1767198985526,0.70433752,125.21,125.18,0.67813248]
[1767198985902,0.70433752,125.22,125.18,3.86968372]
[1767198986703,3.19155124,125.23,125.18,11.17999241]
[1767198986909,3.89588876,125.23,125.19,0.67813248]
[1767198987429,0.70433752,125.22,125.19,0.67813248]
[1767198987984,0.70433752,125.25,125.2,0.67813248]
[1767198988241,9.79596757,125.24,125.2,0.67813248]
[1767198988413,3.89588876,125.24,125.2,0.67813248]
[1767198988613,3.19155124,125.24,125.2,0.67813248]
[1767198988817,9.79641371,125.23,125.19,0.67813248]
[1767198989035,0.70433752,125.22,125.18,3.86968372]
[1767198989341,0.70433752,125.22,125.19,0.67813248]
[1767198990145,0.70433752,125.23,125.19,0.67813248]
[1767198990510,3.89588876,125.23,125.19,0.67813248]
[1767198990735,0.70433752,125.23,125.2,0.67813248]
[1767198992129,3.19155124,125.23,125.18,3.19155124]
[1767198992349,0.70433752,125.22,125.19,0.67813248]
[1767198992526,3.89588876,125.22,125.19,0.67813248]
[1767198993128,3.89588876,125.22,125.18,0.67813248]
[1767198993338,0.70433752,125.21,125.18,0.67813248]
[1767198994337,0.70433752,125.21,125.16,11.85915889]
[1767198994338,0.70433752,125.2,125.16,11.85915889]
[1767198994533,0.70433752,125.2,125.16,3.86968372]
[1767198994732,0.70433752,125.2,125.17,0.67813248]
[1767198997453,3.89588876,125.2,125.16,0.67813248]
[1767198997649,3.89588876,125.2,125.16,8.66784118]
[1767198997955,0.70433752,125.2,125.17,0.67813248]
[1767199003465,3.89588876,125.2,125.17,0.67813248]
[1767199003652,0.70433752,125.2,125.17,0.67813248]
[1767199003857,3.89588876,125.2,125.17,0.67813248]
[1767199004765,3.89588876,125.19,125.15,0.67813248]
[1767199005056,3.89588876,125.19,125.15,8.6685123]
[1767199005258,3.89588876,125.19,125.16,0.67813248]
[1767199005455,105.22471644,125.21,125.17,0.67813248]
[1767199005639,108.41626768,125.21,125.17,0.67813248]
[1767199005839,104.52037892,125.21,125.18,0.67813248]
[1767199006064,3.89588876,125.22,125.18,0.67813248]
[1767199006247,3.19155124,125.21,125.18,0.67813248]
[1767199006446,3.89588876,125.22,125.18,0.67813248]
[1767199006964,0.70433752,125.21,125.18,0.67813248]
[1767199008955,119.82471644,125.23,125.19,0.67813248]
[1767199009138,5.1761341,125.22,125.2,0.67813248]
[1767199009343,3.89588876,125.25,125.21,0.67813248]
[1767199009858,0.70433752,125.26,125.21,0.67813248]
[1767199010034,3.89588876,125.26,125.21,0.67813248]
[1767199010236,0.70433752,125.26,125.22,0.67813248]
[1767199010438,0.70433752,125.23,125.19,3.86968372]
[1767199010664,0.70433752,125.22,125.19,0.67813248]
[1767199011071,0.70433752,125.2,125.17,8.66693841]
[1767199011240,3.19155124,125.21,125.17,8.66693841]
[1767199011560,0.70584764,125.21,125.17,8.66693841]
[1767199011735,3.89739888,125.21,125.17,8.66693841]
[1767199012157,3.89739888,125.21,125.17,7.98880593]
[1767199012351,3.89739888,125.21,125.18,0.69047686]
[1767199012557,0.70584764,125.21,125.18,0.69047686]
[1767199014576,5.6936551,125.21,125.18,0.69047686]
[1767199014742,0.70584764,125.21,125.18,0.69047686]
[1767199017247,4.98780746,125.2,125.15,15.29047686]
[1767199017440,4.98780746,125.2,125.16,0.69047686]
[1767199017650,5.6936551,125.2,125.16,0.69047686]
[1767199017843,0.70584764,125.2,125.16,4.98780746]
[1767199018153,0.70584764,125.2,125.17,0.69047686]
[1767199018559,5.6936551,125.2,125.17,0.69047686]
[1767199019267,5.6936551,125.2,125.15,27.57793515]
[1767199019465,5.6936551,125.2,125.16,0.69047686]
[1767199019466,0.70584764,125.19,125.16,0.69047686]
[1767199021146,0.70584764,125.22,125.16,0.69047686]
[1767199021346,0.70584764,125.2,125.16,0.69047686]
[1767199022040,0.70584764,125.19,125.16,0.69047686]
[1767199023765,0.70584764,125.19,125.16,5.67828432]
[1767199023942,0.70584764,125.2,125.17,0.69047686]
[1767199024144,5.6936551,125.2,125.15,22.59011574]
[1767199024472,0.70584764,125.2,125.17,0.69047686]
[1767199026139,5.91802873,125.19,125.17,0.69047686]
[1767199026345,0.70584764,125.2,125.17,0.69047686]
[1767199026549,5.91989219,125.19,125.17,0.69047686]
[1767199026752,0.70584764,125.2,125.17,0.69047686]
[1767199027056,5.91989131,125.19,125.17,0.69047686]
[1767199027250,0.70584764,125.2,125.17,0.69047686]
[1767199027464,5.6936551,125.2,125.17,0.69047686]
[1767199027684,0.70584764,125.19,125.15,0.69047686]
[1767199027850,0.70584764,125.18,125.15,0.69047686]
[1767199030269,0.70584764,125.18,125.13,23.28192246]
[1767199030501,0.70584764,125.2,125.13,0.69047686]
[1767199030778,0.70584764,125.17,125.13,5.67828432]
[1767199030951,104.52037892,125.21,125.14,4.98780746]
[1767199031149,0.70584764,125.21,125.17,5.67828432]
[1767199031369,0.70584764,125.21,125.18,0.69047686]
[1767199031750,0.70584764,125.21,125.18,5.67828432]
[1767199031954,0.70584764,125.22,125.19,0.69047686]
[1767199032362,0.70584764,125.22,125.16,34.57395088]
[1767199032363,0.70584764,125.21,125.17,5.67828432]
[1767199032673,0.70584764,125.21,125.18,0.69047686]
[1767199033268,4.98780746,125.2,125.16,0.69047686]
[1767199033466,0.70584764,125.19,125.15,15.29047686]
[1767199033774,0.70584764,125.19,125.15,5.67828432]
[1767199034157,0.70584764,125.19,125.15,0.69047686]
[1767199034360,0.70584764,125.18,125.15,0.69047686]
[1767199035268,0.70584764,125.18,125.13,0.69047686]
[1767199035468,0.70584764,125.15,125.11,0.79047686]
[1767199035780,0.70584764,125.15,125.11,5.77828432]
[1767199036076,0.70584764,125.15,125.12,5.67828432]
[1767199036269,0.70584764,125.17,125.13,4.98780746]
[1767199036587,0.70584764,125.17,125.13,5.67828432]
[1767199036984,0.70584764,125.17,125.13,0.69047686]
[1767199037185,0.70584764,125.17,125.11,22.69250942]
[1767199037388,0.70584764,125.16,125.12,0.69047686]
[1767199037596,0.70584764,125.17,125.14,0.69047686]
[1767199039082,14.6,125.2,125.14,5.67828432]
[1767199039289,14.6,125.2,125.15,0.69028827]
[1767199039290,0.69398282,125.18,125.15,0.69028827]
[1767199039475,5.91355434,125.17,125.15,0.69028827]
[1767199039677,0.69398282,125.17,125.14,0.69028827]
[1767199040074,0.69398282,125.17,125.14,5.67809573]
[1767199041088,0.65462431,125.2,125.16,5.67809573]
[1767199041288,5.91223007,125.19,125.16,0.69028827]
[1767199041590,0.65462431,125.2,125.16,5.67809573]
[1767199041765,5.91191999,125.19,125.16,4.98780746]
[1767199041965,5.91191999,125.19,125.14,42.56822519]
[1767199041966,0.65462431,125.22,125.18,5.69444938]
[1767199042166,6.56733389,125.21,125.18,5.69444938]
[1767199042471,0.65462431,125.23,125.2,4.98780746]
[1767199042687,0.65462431,125.23,125.19,4.98780746]
[1767199046499,0.65462431,125.23,125.19,12.97560789]
[1767199046798,0.65462431,125.22,125.18,4.98780746]
[1767199047004,0.65462431,125.21,125.17,27.57664391]
[1767199048024,0.65462431,125.21,125.16,14.6]
[1767199048201,0.65462431,125.21,125.18,12.97596031]
[1767199048587,14.6,125.25,125.19,4.98780746]
[1767199048898,0.65462431,125.23,125.19,4.98780746]
[1767199049093,0.65462431,125.22,125.19,4.98780746]
[1767199049295,0.65462431,125.23,125.19,4.98780746]
[1767199050804,0.65462431,125.23,125.2,4.98780746]
[1767199051374,0.65462431,125.25,125.21,4.98780746]
[1767199051988,0.65462431,125.25,125.2,4.98780746]
[1767199052601,0.65462431,125.25,125.21,4.98780746]
[1767199054008,0.65462431,125.27,125.21,7.98656448]
[1767199054208,0.65462431,125.26,125.22,4.98780746]
[1767199054386,0.65462431,125.26,125.21,7.98656448]
[1767199054586,0.65462431,125.26,125.22,4.98780746]
[1767199055401,0.65462431,125.26,125.23,4.98780746]
[1767199055592,0.65462431,125.26,125.22,4.98780746]
[1767199057294,0.65462431,125.26,125.23,4.98780746]
[1767199057696,0.65462431,125.26,125.22,7.98582212]
[1767199057900,0.65462431,125.26,125.23,4.98780746]
[1767199058903,0.65462431,125.26,125.22,12.97341877]
[1767199059896,0.65462431,125.26,125.23,4.98780746]
[1767199060699,0.65462431,125.26,125.22,7.98561131]
[1767199060700,0.65462431,125.26,125.22,4.98780746]
[1767199060904,0.65462431,125.26,125.22,12.97362859]
[1767199061113,0.65462431,125.26,125.23,4.98780746]
[1767199061304,0.65462431,125.26,125.22,7.98582113]
[1767199061617,0.65462431,125.26,125.23,4.98780746]
[1767199062018,0.65462431,125.26,125.22,7.98582113]
[1767199062019,0.65462431,125.26,125.22,12.97362859]
[1767199065424,14.6,125.29,125.24,4.98780746]
[1767199065727,0.65462431,125.28,125.24,4.98780746]
[1767199066218,0.65462431,125.28,125.24,12.97236136]
[1767199067220,4.98780746,125.28,125.23,12.97263543]
[1767199067534,0.65462431,125.27,125.23,12.97263543]
[1767199068323,0.65462431,125.27,125.24,4.98780746]
[1767199068700,0.65462431,125.26,125.2,19.96696002]
[1767199069010,0.65462431,125.26,125.22,4.98780746]
[1767199069207,0.65462431,125.24,125.21,14.6]
[1767199069406,0.65462431,125.24,125.2,12.974694]
[1767199070710,0.65462431,125.24,125.21,4.98780746]
[1767199072624,4.98780746,125.26,125.22,4.98780746]
[1767199072819,0.68884662,125.25,125.22,4.98780746]
[1767199073528,0.68884662,125.27,125.23,4.98780746]
[1767199074628,0.68884662,125.27,125.23,3.18836164]
[1767199074832,0.68884662,125.27,125.24,3.18836164]
[1767199075920,0.68884662,125.27,125.22,7.98594473]
[1767199076110,0.68884662,125.27,125.24,3.18836164]
[1767199076421,0.68884662,125.27,125.25,3.18836164]
[1767199076743,104.52037892,125.29,125.25,3.18836164]
[1767199076902,0.68884662,125.28,125.25,3.18836164]
[1767199077616,0.68884662,125.28,125.22,31.13916821]
[1767199077816,0.68884662,125.28,125.25,3.18836164]
[1767199078015,0.68884662,125.28,125.22,31.13916821]
[1767199078316,0.68884662,125.28,125.24,3.18836164]
[1767199079125,0.68884662,125.28,125.25,3.18836164]
[1767199079701,0.68884662,125.28,125.25,11.17212585]
[1767199079920,0.68884662,125.28,125.25,7.98376421]
[1767199080107,0.68884662,125.28,125.25,11.17212585]
[1767199081635,0.68884662,125.32,125.26,3.18836164]
[1767199081932,0.68884662,125.31,125.27,3.18836164]
[1767199082107,0.68884662,125.31,125.28,3.18836164]
[1767199082515,0.68884662,125.31,125.27,3.18836164]
[1767199083104,0.68884662,125.31,125.25,42.54384405]
[1767199083435,0.68884662,125.29,125.25,25.77212585]
[1767199083728,0.68884662,125.29,125.26,3.18836164]
[1767199084309,0.68884662,125.29,125.25,22.58376421]
[1767199084509,0.68884662,125.27,125.25,14.6]
[1767199085713,0.68884662,125.32,125.25,17.78836164]
[1767199085933,0.68884662,125.29,125.25,3.18836164]
[1767199086139,0.68884662,125.28,125.24,11.17244852]
[1767199086524,0.68884662,125.28,125.22,34.56394963]
[1767199086525,3.18836164,125.28,125.23,11.17335201]
[1767199086721,0.68884662,125.27,125.24,7.98449228]
[1767199087028,0.68884662,125.27,125.23,11.17353391]
[1767199087819,0.68884662,125.27,125.24,3.18836164]
[1767199088128,0.68884662,125.27,125.23,7.98517227]
[1767199088334,0.68884662,125.27,125.23,11.17353391]
[1767199089139,0.68884662,125.27,125.23,7.98517227]
[1767199089443,0.68884662,125.27,125.23,11.17353391]
[1767199091042,0.68884662,125.27,125.23,7.98517227]
[1767199091342,0.68884662,125.26,125.22,25.7740321]
[1767199091717,0.68884662,125.26,125.22,11.1740321]
[1767199092034,3.18836164,125.26,125.21,25.77468815]
[1767199092242,0.68884662,125.25,125.21,25.77468815]
[1767199093722,0.68884662,125.25,125.22,11.17390604]
[1767199094925,0.68884662,125.25,125.22,7.9855444]
[1767199095125,0.68884662,125.25,125.22,11.17390604]
[1767199095330,0.68884662,125.27,125.21,22.58626]
[1767199095534,0.68884662,125.24,125.21,25.77462164]
[1767199097017,0.68884662,125.24,125.21,17.78836164]
[1767199098029,0.68884662,125.24,125.21,25.7749148]
[1767199099543,0.70690257,125.28,125.23,3.18836164]
[1767199099747,5.92392634,125.27,125.24,3.18836164]
[1767199099953,0.70690257,125.3,125.26,3.18836164]
[1767199100154,6.63170244,125.29,125.26,3.18836164]
[1767199100459,5.92479987,125.28,125.26,3.18836164]
[1767199100951,5.92479987,125.28,125.24,14.6]
[1767199100952,119.32037892,125.33,125.27,3.18836164]
[1767199101127,0.70690257,125.31,125.27,3.18836164]
[1767199101328,0.70690257,125.31,125.26,3.18836164]
[1767199101329,0.70267663,125.29,125.26,3.18836164]
[1767199101529,0.70267663,125.29,125.26,11.17121588]
[1767199102235,0.70267663,125.31,125.27,3.18836164]
[1767199102421,6.62924532,125.3,125.26,7.98285424]
[1767199102623,0.70267663,125.3,125.27,3.18836164]
[1767199103853,0.70267663,125.3,125.26,7.98285424]
[1767199104025,0.70267663,125.3,125.27,3.18836164]
[1767199104224,0.2,125.33,125.29,3.18836164]
[1767199104524,0.2,125.33,125.28,3.18836164]
[1767199104748,0.2,125.33,125.31,3.18836164]
[1767199105153,0.2,125.33,125.3,3.18836164]
[1767199105646,0.2,125.33,125.31,3.18836164]
[1767199105837,0.2,125.33,125.3,3.18836164]
[1767199106339,0.90267663,125.33,125.29,11.16959105]
[1767199106540,0.90267663,125.33,125.3,14.6]
[1767199106848,0.90267663,125.33,125.29,3.18836164]
[1767199107044,0.90267663,125.33,125.3,14.6]
[1767199107525,0.90267663,125.33,125.3,17.78836164]
[1767199108843,0.2,125.33,125.3,22.58082155]
[1767199109045,0.90267663,125.33,125.3,14.6]
[1767199109243,0.70267663,125.32,125.3,14.58]
[1767199109444,0.70267663,125.31,125.29,14.58]
[1767199109643,0.70267663,125.31,125.27,3.18836164]
[1767199109839,0.70267663,125.31,125.28,14.58]
[1767199112855,3.89103827,125.3,125.25,11.17192948]
[1767199113039,0.70267663,125.29,125.27,14.58]
[1767199115961,0.70267663,125.29,125.27,17.76836164]
[1767199116157,0.70267663,125.32,125.28,3.18836164]
[1767199116364,0.70267663,125.32,125.29,3.18836164]
[1767199117143,0.70267663,125.32,125.3,3.18836164]
[1767199117342,0.90267663,125.33,125.3,3.18836164]
[1767199118739,0.90267663,125.33,125.3,14.58]
[1767199118934,0.90267663,125.33,125.3,7.98066903]
[1767199119239,0.90267663,125.33,125.3,22.56066903]
[1767199119967,0.90267663,125.33,125.3,25.74903067]
[1767199120460,0.90267663,125.33,125.3,17.76836164]
[1767199121366,0.70267663,125.32,125.28,19.95483652]
[1767199121663,0.70267663,125.32,125.29,14.58]
[1767199122162,0.70267663,125.31,125.29,14.58]
[1767199124161,0.70267663,125.31,125.27,17.76836164]
[1767199124663,0.70267663,125.32,125.28,3.18836164]
[1767199125759,0.70267663,125.32,125.28,11.17016557]
[1767199125950,0.70267663,125.31,125.28,25.75045228]
[1767199127357,0.70267663,125.31,125.28,22.56209064]
[1767199127542,0.70267663,125.31,125.28,25.75045228]
[1767199128235,0.70267663,125.31,125.27,11.17093433]
[1767199128438,0.70267663,125.3,125.28,14.58]
[1767199129348,0.2,125.33,125.28,14.58]
[1767199129570,0.70267663,125.31,125.28,17.76836164]
[1767199129867,0.70267663,125.31,125.28,25.7503614]
[1767199133845,0.70267663,125.31,125.28,14.58]
[1767199135478,0.69756436,125.3,125.28,14.58]
[1767199136074,0.69756436,125.29,125.26,14.58]
[1767199136279,0.69756436,125.29,125.25,7.98378708]
[1767199136458,0.69756436,125.29,125.26,14.58]
[1767199140967,5.67632494,125.29,125.26,14.58]
[1767199141187,0.69756436,125.29,125.26,14.58]
[1767199141384,0.69756436,125.29,125.26,27.5421378]
[1767199142765,0.69756436,125.29,125.26,22.56337722]
[1767199142974,0.69756436,125.29,125.26,27.5421378]
[1767199143169,0.69756436,125.29,125.26,27.54209615]
[1767199143375,0.69756436,125.29,125.26,19.55876058]
[1767199144369,0.69756436,125.29,125.26,14.58]
[1767199144559,0.69756436,125.26,125.22,68.70583886]
[1767199144764,0.69756436,125.26,125.2,8.96062399]
[1767199144765,0.69756436,125.25,125.2,4.97876058]
[1767199144966,0.69756436,125.25,125.21,22.56654971]
[1767199145165,49.53139527,125.31,125.22,4.97876058]
[1767199145166,5.67632494,125.27,125.22,4.97876058]
[1767199145462,5.67632494,125.27,125.23,14.58]
[1767199145463,0.69756436,125.27,125.23,14.58]
[1767199146087,0.69756436,125.27,125.23,19.55876058]
[1767199147294,0.69756436,125.26,125.23,19.55876058]
[1767199147794,0.69756436,125.29,125.25,4.97876058]
[1767199148101,0.69756436,125.27,125.23,22.56494549]
[1767199148278,0.69756436,125.27,125.24,4.97876058]
[1767199149585,0.69756436,125.27,125.23,22.56494549]
[1767199149785,0.69756436,125.27,125.24,4.97876058]
[1767199151383,0.69756436,125.27,125.24,7.9845973]
[1767199151612,0.69756436,125.27,125.24,12.96335788]
[1767199153289,0.69756436,125.27,125.25,4.97876058]
[1767199154204,0.69756436,125.27,125.24,12.96335788]
[1767199156200,0.69756436,125.27,125.24,4.97876058]
[1767199156874,0.69756436,125.27,125.23,19.55876058]
[1767199157593,0.69756436,125.27,125.23,14.58]
[1767199159392,0.69756436,125.27,125.23,19.55876058]
[1767199160388,0.69756436,125.27,125.23,14.58]
[1767199160915,7.98052841,125.31,125.23,19.55876058]
[1767199161087,5.66622522,125.29,125.23,19.55876058]
[1767199161287,6.63627275,125.28,125.23,19.55876058]
[1767199161503,0.71303608,125.28,125.23,19.55876058]
[1767199163501,0.71303608,125.28,125.24,4.97876058]
[1767199163800,0.71303608,125.28,125.23,27.54402825]
[1767199164516,0.71303608,125.28,125.23,14.58]
[1767199164817,0.71303608,125.28,125.23,19.55876058]
[1767199165631,4.97876058,125.28,125.23,14.58]
[1767199165821,0.71303608,125.27,125.23,19.55876058]
[1767199166008,0.71303608,125.31,125.25,4.97876058]
[1767199166210,6.6373935,125.3,125.26,4.97876058]
[1767199166405,6.6373935,125.29,125.25,4.97876058]
[1767199166608,0.71303608,125.29,125.25,4.97876058]
[1767199167515,0.71303608,125.29,125.24,19.57876058]
[1767199167694,0.71303608,125.28,125.24,19.57876058]
[1767199167894,0.71303608,125.28,125.24,27.56338225]
[1767199168109,0.68303608,125.28,125.24,27.59338225]
[1767199169226,0.68303608,125.28,125.24,27.56338225]
[1767199169409,0.68303608,125.28,125.25,0.03]
[1767199172004,4.97876058,125.3,125.25,5.00876058]
[1767199172222,6.64097593,125.29,125.25,5.00876058]
[1767199172435,0.71303608,125.29,125.25,5.00876058]
[1767199172732,0.71303608,125.29,125.25,0.03]
[1767199174406,0.71303608,125.28,125.25,0.03]
[1767199174608,0.71303608,125.28,125.24,27.56338225]
[1767199174924,0.71303608,125.28,125.25,0.03]
[1767199176636,0.71303608,125.28,125.25,14.61]
[1767199178511,0.71303608,125.28,125.25,27.57274426]
[1767199179442,0.71303608,125.28,125.25,14.61]
[1767199180141,0.71303608,125.28,125.25,19.58876058]
[1767199180523,4.97876058,125.31,125.25,27.54273281]
[1767199180713,0.71303608,125.29,125.26,0.03]
[1767199181113,0.71303608,125.29,125.26,14.61]
[1767199181813,0.71303608,125.29,125.26,14.58]
[1767199183524,0.71303608,125.29,125.25,12.99273281]
[1767199183727,0.71303608,125.29,125.26,14.58]
[1767199184638,6.64851531,125.28,125.26,14.58]
[1767199184848,0.71303608,125.26,125.24,14.58]
[1767199185718,0.68303608,125.26,125.24,14.58]
[1767199188727,4.97876058,125.28,125.24,14.58]
[1767199189044,6.64795499,125.27,125.24,14.58]
[1767199189220,5.93491891,125.26,125.24,14.58]
[1767199189420,0.71303608,125.27,125.24,14.58]
[1767199189620,5.93394876,125.26,125.24,14.58]
[1767199189940,0.71303608,125.27,125.24,14.58]
[1767199190239,5.93394965,125.26,125.24,14.58]
[1767199190417,0.71303608,125.27,125.24,14.58]
[1767199190718,5.93486221,125.26,125.24,14.58]
[1767199190917,0.71303608,125.27,125.24,14.58]
[1767199191119,5.93486221,125.26,125.24,14.58]
[1767199191320,0.71303608,125.27,125.24,14.58]
[1767199191542,6.60498633,125.26,125.24,14.58]
[1767199191749,0.66972824,125.26,125.24,14.58]
[1767199194351,0.66972824,125.3,125.24,27.6034234]
[1767199194542,0.66972824,125.28,125.24,27.6034234]
[1767199194745,6.60525532,125.27,125.24,27.6034234]
[1767199194925,5.93552708,125.26,125.24,27.6034234]
[1767199195125,0.66972824,125.27,125.24,27.6034234]
[1767199195444,5.93502987,125.26,125.24,27.6034234]
[1767199195643,0.66972824,125.27,125.24,19.61876058]
[1767199195947,5.93619652,125.26,125.24,19.61876058]
[1767199196247,7.98044689,125.31,125.25,5.03876058]
[1767199196248,0.66972824,125.31,125.25,5.03876058]
[1767199196455,0.66972824,125.29,125.25,13.02251842]
[1767199196756,5.93683283,125.28,125.26,3.18707115]
[1767199196925,0.66972824,125.29,125.26,3.18707115]
[1767199197126,5.93762238,125.28,125.26,3.18707115]
[1767199197327,0.66972824,125.29,125.25,11.23082899]
[1767199197527,6.60720199,125.28,125.25,11.23082899]
[1767199197849,0.66972824,125.28,125.25,11.23082899]
[1767199198222,0.66972824,125.3,125.25,11.23082899]
[1767199198422,6.60696338,125.29,125.25,11.23082899]
[1767199198623,5.93723514,125.28,125.25,11.23082899]
[1767199198835,0.66972824,125.29,125.25,11.23082899]
[1767199199034,5.93723118,125.28,125.25,11.23082899]
[1767199199236,0.66972824,125.29,125.25,8.04375784]
[1767199199457,6.60650386,125.28,125.25,0.06]
[1767199199633,5.93677562,125.27,125.25,8.04399146]
[1767199199828,0.66972824,125.28,125.25,8.04399146]
[1767199200030,5.93685305,125.27,125.25,8.04399146]
[1767199200355,0.66972824,125.28,125.25,8.04399146]
[1767199200558,0.66972824,125.26,125.24,14.6]
[1767199203164,5.93759202,125.25,125.24,14.6]
[1767199203955,5.93759202,125.25,125.2,6.79438066]
[1767199203956,0.66972824,125.24,125.2,6.79438066]
[1767199204156,6.60650441,125.23,125.2,14.66]
[1767199204462,0.66972824,125.23,125.2,14.66]
[1767199204755,0.66972824,125.23,125.2,22.64715312]
[1767199209440,0.66972824,125.23,125.2,14.66]
[1767199209645,3.18707115,125.23,125.2,14.6]
[1767199209866,0.66972824,125.21,125.2,14.6]
[1767199210164,0.66972824,125.21,125.18,22.64816769]
[1767199210366,0.66972824,125.21,125.18,22.58816769]
[1767199210866,0.66972824,125.21,125.18,14.6]
[1767199211261,0.66972824,125.21,125.18,22.64836163]
[1767199212240,0.66972824,125.21,125.18,17.84707115]
[1767199212442,0.66972824,125.21,125.18,14.6]
[1767199212640,3.18707115,125.22,125.18,14.6]
[1767199212641,0.66972824,125.2,125.18,14.6]
[1767199215169,0.66972824,125.26,125.18,25.7753391]
[1767199215467,0.66972824,125.23,125.19,3.18707115]
[1767199216570,0.66972824,125.22,125.18,25.8353391]
[1767199218059,0.66972824,125.19,125.15,8.05005339]
[1767199218259,3.85679939,125.19,125.15,8.05005339]
[1767199218467,0.66972824,125.18,125.15,8.05005339]
[1767199218768,0.66972824,125.18,125.15,22.65005339]
[1767199220176,0.66972824,125.18,125.15,25.83712454]
[1767199220375,0.66972824,125.18,125.15,22.59005339]
[1767199220752,0.71228485,125.23,125.16,3.24707115]
[1767199221075,0.71228485,125.21,125.17,3.18707115]
[1767199221579,0.71228485,125.21,125.16,3.24707115]
[1767199222452,0.65827033,125.2,125.16,11.23678786]
[1767199222653,0.65827033,125.19,125.15,25.83722545]
[1767199223380,0.65827033,125.19,125.16,3.18707115]
[1767199224375,0.65827033,125.19,125.16,11.17674935]
[1767199225358,0.65827033,125.21,125.17,3.24707115]
[1767199226071,0.65827033,125.21,125.18,17.84707115]
[1767199226272,0.65827033,125.21,125.18,3.24707115]
[1767199226466,0.65827033,125.21,125.19,3.18707115]
[1767199227167,0.65827033,125.21,125.18,22.64843088]
[1767199227355,0.65827033,125.24,125.2,3.18707115]
[1767199227555,0.65827033,125.23,125.19,3.18707115]
[1767199228764,0.65827033,125.23,125.19,11.17461768]
[1767199228972,0.65827033,125.23,125.19,25.83461768]
[1767199232278,0.65827033,125.23,125.19,25.77461768]
[1767199232790,0.65827033,125.23,125.19,25.83461768]
[1767199233787,0.65827033,125.23,125.19,25.77461768]
[1767199234176,0.65827033,125.23,125.19,25.83461768]
[1767199234685,0.65827033,125.23,125.19,25.77461768]
[1767199235589,0.65827033,125.22,125.19,22.64754653]
[1767199235886,3.18707115,125.25,125.2,3.18707115]
[1767199236088,0.65827033,125.23,125.19,22.64754653]
[1767199236281,0.65827033,125.23,125.19,25.83461768]
[1767199237576,0.65827033,125.23,125.19,17.84707115]
[1767199238898,0.65827033,125.23,125.2,7.98722044]
[1767199239590,0.65827033,125.22,125.2,7.98722044]
[1767199239900,0.65827033,125.22,125.19,22.58778695]
[1767199240292,0.65827033,125.22,125.19,7.98778695]
[1767199245795,3.18707115,125.21,125.18,14.6]
[1767199246099,0.65827033,125.2,125.18,14.6]
[1767199246502,0.65827033,125.2,125.18,22.58847105]
[1767199248698,0.65827033,125.22,125.18,25.8355422]
[1767199248900,0.65827033,125.22,125.18,11.2355422]
[1767199249085,0.65827033,125.22,125.18,25.8355422]
[1767199250510,0.65827033,125.22,125.18,22.64847105]
[1767199251103,0.65827033,125.22,125.18,25.8355422]
[1767199252709,0.65827033,125.22,125.18,22.64847105]
[1767199252904,6.65630975,125.21,125.18,25.8355422]
[1767199253094,0.72421077,125.21,125.18,25.8355422]
[1767199253802,0.72421077,125.21,125.18,22.58847105]
[1767199254314,0.72421077,125.21,125.18,25.8355422]
[1767199256510,0.72421077,125.21,125.18,27.63447239]
[1767199257512,0.72421077,125.21,125.18,22.64847105]
[1767199257697,0.72421077,125.21,125.18,27.63447239]
[1767199259112,0.72421077,125.25,125.19,0.06]
[1767199259412,0.72421077,125.22,125.18,27.63447239]
[1767199259781,4.98600134,125.22,125.18,22.64847105]
[1767199260010,4.98600134,125.22,125.18,14.6]
[1767199260011,6.6539517,125.21,125.18,14.6]
[1767199260313,6.6539517,125.21,125.16,22.64958003]
[1767199260314,0.72421077,125.19,125.16,22.64958003]
[1767199260610,0.72421077,125.19,125.16,14.6]
[1767199260990,0.72421077,125.18,125.16,14.6]
[1767199261585,0.72421077,125.18,125.15,14.6]
[1767199261814,0.72421077,125.18,125.15,22.59037671]
[1767199262402,0.72421077,125.18,125.15,14.6]
[1767199262602,0.72421077,125.16,125.15,14.6]
[1767199264188,0.72421077,125.18,125.15,14.6]
[1767199264384,4.98600134,125.19,125.15,14.6]
[1767199264595,0.72421077,125.17,125.15,14.6]
[1767199265311,0.72421077,125.17,125.14,13.03699118]
[1767199266012,0.72421077,125.17,125.14,12.97699118]
[1767199266915,0.72421077,125.22,125.16,4.98600134]
[1767199267126,0.72421077,125.2,125.16,4.98600134]
[1767199267292,0.72421077,125.19,125.16,19.58600134]
[1767199267711,0.72421077,125.22,125.17,5.04600134]
[1767199268009,0.72421077,125.2,125.16,14.6]
[1767199268214,0.72421077,125.2,125.16,27.5757415]
[1767199268821,0.72421077,125.2,125.16,22.58974016]
[1767199269018,0.72421077,125.2,125.16,27.5757415]
[1767199269200,0.72421077,125.2,125.16,14.66]
[1767199269396,4.98600134,125.2,125.16,22.58959753]
[1767199269622,0.72421077,125.18,125.16,22.58959753]
[1767199269820,0.72421077,125.18,125.16,14.6]